bitfinex/quotes_ETHUSD_20240713
["timestamp","ask_amount","ask_price","bid_price","bid_amount"]
[1720908338824,0.13757659,3173.2,3173.0,1.554627]
[1720908339024,2.4987,3173.8,3173.0,1.554627]
[1720908339314,0.13757455,3173.7,3173.0,0.804]
[1720908339504,0.13757455,3173.6,3173.0,0.804]
[1720908339701,0.13757455,3173.5,3173.0,0.804]
[1720908339907,0.13757455,3173.4,3173.2,0.804]
[1720908340208,0.13757455,3173.3,3173.2,0.804]
[1720908340410,0.13757455,3173.3,3173.2,1.554603]
[1720908340720,2.74049397,3174.2,3173.3,4.49574]
[1720908340919,0.13755464,3174.1,3173.4,0.804]
[1720908341121,2.74049397,3174.2,3173.4,0.804]
[1720908341122,0.13755464,3174.0,3173.4,0.804]
[1720908341459,0.13755464,3173.9,3173.4,0.804]
[1720908341727,0.13755464,3173.8,3173.4,1.9296313]
[1720908342022,0.13755464,3173.7,3173.4,1.9296313]
[1720908342325,3.3027,3174.3,3173.4,1.9296313]
[1720908342621,2.87682145,3174.2,3173.4,0.804]
[1720908342826,3.3027,3174.3,3173.4,0.804]
[1720908343134,0.13755423,3174.2,3173.4,0.804]
[1720908343426,2.4987,3174.0,3173.2,3.0]
[1720908343596,0.48157965,3173.9,3173.2,3.0]
[1720908343926,0.13755423,3173.8,3173.2,3.0]
[1720908344110,0.13755423,3173.7,3173.2,3.0]
[1720908344435,0.13755423,3173.6,3173.2,3.804]
[1720908344727,0.13755423,3173.5,3173.2,6.00997]
[1720908344925,0.804,3174.1,3173.2,6.00997]
[1720908345231,0.74171133,3174.0,3173.2,3.0]
[1720908345527,3.44025998,3173.9,3173.2,3.0]
[1720908345685,0.13756191,3173.8,3173.2,3.0]
[1720908345889,0.13756191,3173.7,3173.2,3.0]
[1720908346129,0.13756191,3173.6,3173.2,3.0]
[1720908346294,0.13756191,3173.5,3173.2,4.050597]
[1720908346516,3.3027,3173.9,3173.2,4.050597]
[1720908346517,0.13756191,3173.4,3173.2,4.050597]
[1720908346717,3.3027,3173.9,3173.2,4.050597]
[1720908347021,0.1375619,3173.8,3173.2,3.0]
[1720908347355,0.1375619,3173.7,3173.1,5.2899]
[1720908347525,0.1375619,3173.6,3173.1,7.49593]
[1720908347731,0.1375619,3173.5,3173.1,7.49593]
[1720908347950,0.1375619,3173.4,3173.1,7.49593]
[1720908348112,3.3027,3173.9,3173.2,1.050598]
[1720908348313,0.13756186,3173.8,3173.2,4.050598]
[1720908348509,0.13756186,3173.7,3173.2,4.050598]
[1720908348811,0.13756186,3173.6,3173.2,4.050598]
[1720908349007,3.3027,3173.9,3173.2,4.050598]
[1720908349249,0.13756196,3173.8,3173.2,4.050598]
[1720908349423,0.13756196,3173.7,3173.2,4.050598]
[1720908349748,0.13756196,3173.6,3173.2,4.050598]
[1720908349961,0.13756196,3173.5,3172.8,2.20621]
[1720908350250,0.13756196,3173.4,3172.9,2.2899]
[1720908350452,0.13756196,3173.3,3172.9,6.861911]
[1720908350635,0.13756196,3173.2,3172.9,6.861911]
[1720908350815,0.804,3173.7,3172.9,6.861911]
[1720908351016,0.13757632,3173.6,3172.9,6.861911]
[1720908351236,0.13757632,3173.5,3172.9,6.861911]
[1720908351416,0.13757632,3173.4,3172.9,6.861911]
[1720908351616,0.13757632,3173.3,3172.9,6.861911]
[1720908351843,0.13757632,3173.2,3173.0,0.9068121]
[1720908352052,0.804,3173.7,3173.0,3.9068121]
[1720908352261,2.4987,3173.5,3173.0,3.0]
[1720908352551,0.13757529,3173.4,3172.8,3.0]
[1720908352711,0.13757529,3173.3,3172.8,3.0]
[1720908352915,2.4987,3173.5,3172.8,4.792656]
[1720908352916,0.13757529,3173.2,3172.8,4.792656]
[1720908353139,0.13757529,3173.1,3172.8,4.792656]
[1720908353328,2.4987,3173.5,3172.8,4.792656]
[1720908353649,0.13756833,3173.4,3172.8,4.792656]
[1720908353850,0.13756833,3173.3,3172.8,4.792656]
[1720908354155,0.13756833,3173.2,3172.9,1.7512836]
[1720908354330,0.13756833,3173.1,3172.9,1.7512836]
[1720908354524,2.4987,3173.5,3172.9,1.7512836]
[1720908354743,0.13756787,3173.4,3172.9,1.7512836]
[1720908354958,0.13756787,3173.3,3172.9,1.7512836]
[1720908355118,0.13756787,3173.2,3172.9,1.7512836]
[1720908355448,0.13756787,3173.1,3172.9,1.7512836]
[1720908355649,2.4987,3173.5,3172.9,1.7512836]
[1720908356146,0.13756845,3173.4,3172.8,3.0]
[1720908356347,0.13756764,3173.3,3172.8,3.0]
[1720908356594,0.13756764,3173.2,3172.8,3.0]
[1720908356870,0.13756764,3173.1,3172.8,3.0]
[1720908357036,2.4987,3173.5,3172.9,0.830018]
[1720908357234,0.1375698,3173.4,3172.9,0.830018]
[1720908357552,2.4987,3173.5,3172.9,0.830018]
[1720908357553,0.1375698,3173.3,3172.9,0.830018]
[1720908357751,0.1375698,3173.2,3172.9,0.830018]
[1720908357916,2.4987,3173.5,3172.9,0.830018]
[1720908358115,0.13757317,3173.4,3172.9,0.830018]
[1720908358349,0.13757317,3173.3,3173.0,0.3830018]
[1720908358551,0.13757317,3173.2,3173.0,0.3830018]
[1720908358764,2.4987,3173.5,3173.0,0.3830018]
[1720908358913,0.13757313,3173.4,3173.0,0.3830018]
[1720908359114,2.4987,3173.5,3173.0,0.3830018]
[1720908359347,0.13757319,3173.4,3173.0,0.3830018]
[1720908359526,0.13757319,3173.3,3173.0,0.3830018]
[1720908359722,0.13757319,3173.2,3173.0,0.3830018]
[1720908359951,2.4987,3173.5,3173.0,0.3830018]
[1720908360157,0.13757295,3173.4,3173.0,0.3830018]
[1720908360323,0.13757295,3173.3,3173.0,0.3830018]
[1720908360533,0.13757295,3173.2,3173.0,0.3830018]
[1720908360734,2.4987,3173.5,3173.0,0.3830018]
[1720908360961,0.13757261,3173.4,3173.0,0.3830018]
[1720908361169,2.4987,3173.5,3173.0,0.3830018]
[1720908361317,0.13757238,3173.4,3173.0,0.3830018]
[1720908361937,0.13757313,3173.3,3173.0,0.3830018]
[1720908362242,0.13757313,3173.2,3173.0,0.3830018]
[1720908362421,0.13756846,3173.1,3173.0,0.3830018]
[1720908365237,0.13757007,3173.4,3173.0,0.3830018]
[1720908365441,0.13757019,3173.3,3172.8,3.0]
[1720908365759,0.1375701,3173.2,3172.8,3.0]
[1720908365963,0.1375701,3173.1,3172.8,3.0]
[1720908366265,2.4987,3173.5,3172.8,3.0]
[1720908366434,0.13757081,3173.4,3172.8,3.830017]
[1720908366640,0.13757081,3173.3,3172.8,3.830017]
[1720908366841,0.13757081,3173.2,3172.8,3.830017]
[1720908367047,0.13757081,3173.1,3172.8,3.830017]
[1720908367362,2.4987,3173.5,3172.8,3.830017]
[1720908367560,0.13757049,3173.4,3172.8,3.830017]
[1720908367869,0.13757049,3173.3,3172.9,0.9130187]
[1720908368158,0.13757049,3173.2,3172.9,0.9130187]
[1720908368463,2.4987,3173.5,3172.9,0.9130187]
[1720908368662,0.13757061,3173.4,3172.8,3.0]
[1720908371873,2.4987,3173.5,3172.8,3.0]
[1720908372037,0.13757024,3173.4,3172.8,3.0]
[1720908372237,0.13757024,3173.3,3172.8,3.0]
[1720908372561,0.13757024,3173.2,3172.8,3.60939]
[1720908372739,0.13757024,3173.1,3172.8,3.60939]
[1720908372940,2.4987,3173.5,3172.8,3.60939]
[1720908373165,0.13757082,3173.4,3172.8,3.0]
[1720908373463,0.13757082,3173.3,3172.8,3.0]
[1720908373646,0.13757082,3173.2,3172.8,3.0]
[1720908373851,0.13757082,3173.1,3172.8,3.0]
[1720908374038,2.4987,3173.5,3172.8,3.0]
[1720908374237,0.13757059,3173.4,3172.8,3.0]
[1720908374433,0.13757059,3173.3,3172.8,3.0]
[1720908374639,0.13757059,3173.2,3172.8,3.60939]
[1720908374869,0.13757059,3173.1,3172.8,3.60939]
[1720908375176,2.4967,3173.5,3172.8,3.60939]
[1720908375345,0.13757126,3173.4,3172.8,3.60939]
[1720908375573,0.13757126,3173.3,3172.9,0.49674844]
[1720908375763,2.4967,3173.5,3172.9,0.49674844]
[1720908375944,0.13757098,3173.4,3172.9,0.49674844]
[1720908376131,0.13757098,3173.3,3173.0,2.4782]
[1720908376334,0.13757098,3173.2,3173.0,5.4782]
[1720908376558,2.73836277,3173.8,3173.1,0.59749484]
[1720908376782,0.13756063,3173.7,3173.0,5.4782]
[1720908377075,0.13756063,3173.6,3173.0,2.4782]
[1720908377234,0.13756063,3173.5,3173.0,2.4782]
[1720908377437,0.13756063,3173.4,3173.0,2.4782]
[1720908377634,0.13756063,3173.3,3173.0,3.086959]
[1720908377867,0.13756063,3173.2,3173.0,3.086959]
[1720908378075,0.13756063,3173.1,3173.0,3.086959]
[1720908378278,0.13755599,3173.1,3173.0,6.086959]
[1720908378638,0.13755526,3173.1,3173.0,6.086959]
[1720908379376,2.73836277,3173.9,3173.0,6.086959]
[1720908379672,2.4827,3174.0,3173.1,1.4930959]
[1720908379673,0.13756113,3173.8,3173.1,1.4930959]
[1720908379838,0.13756113,3173.7,3173.1,1.4930959]
[1720908380039,0.13756113,3173.6,3173.1,1.4930959]
[1720908380245,0.13756113,3173.5,3173.2,0.75800549]
[1720908380444,0.13756113,3173.4,3173.2,0.75800549]
[1720908380766,0.13756113,3173.3,3173.2,0.75800549]
[1720908381172,2.4827,3174.0,3173.2,3.23620549]
[1720908381350,0.13755929,3173.9,3173.2,3.23620549]
[1720908381549,0.13755929,3173.8,3173.2,3.23620549]
[1720908381775,0.13755929,3173.7,3173.2,3.23620549]
[1720908381958,2.4827,3174.0,3173.2,3.23620549]
[1720908382178,0.74006214,3173.9,3173.2,2.4782]
[1720908382490,0.13755586,3173.8,3173.2,2.4782]
[1720908382777,0.13755586,3173.7,3173.2,2.4782]
[1720908382960,0.13755586,3173.6,3173.2,2.4782]
[1720908383282,0.13755586,3173.5,3173.2,2.4782]
[1720908383450,0.13755586,3173.4,3173.0,3.0]
[1720908383652,0.13755586,3173.3,3173.1,0.601018]
[1720908383847,0.13755586,3173.2,3173.1,0.601018]
[1720908384357,0.13755586,3173.2,3173.0,5.4782]
[1720908384579,0.13755586,3173.1,3173.0,5.4782]
[1720908384781,0.13754865,3173.1,3173.0,5.4782]
[1720908385475,2.4827,3173.6,3173.0,5.4782]
[1720908385686,0.13755024,3173.5,3173.0,5.4782]
[1720908385991,2.4827,3173.6,3173.0,5.4782]
[1720908386208,0.13755039,3173.5,3173.0,5.4782]
[1720908386509,0.13755039,3173.4,3173.0,5.4782]
[1720908386691,0.13755039,3173.3,3173.0,6.307577]
[1720908386999,0.13755039,3173.2,3173.0,6.307577]
[1720908387294,2.4827,3173.8,3173.0,6.307577]
[1720908387600,0.13755344,3173.7,3173.0,6.307577]
[1720908387895,0.13755344,3173.6,3173.0,5.4782]
[1720908388194,0.13755344,3173.5,3173.0,5.4782]
[1720908388406,0.13755344,3173.4,3173.0,5.4782]
[1720908388601,0.13755046,3173.3,3173.0,5.4782]
[1720908388902,0.13754827,3173.2,3173.0,5.4782]
[1720908389106,0.13754827,3173.1,3173.0,5.4782]
[1720908390214,0.13754827,3173.1,3173.0,3.0]
[1720908390393,0.13754827,3173.1,3172.8,7.68442]
[1720908390699,0.13754628,3173.0,3172.9,0.848842]
[1720908390995,0.13754628,3173.0,3172.9,3.848842]
[1720908392120,2.4827,3173.8,3172.9,3.848842]
[1720908392402,0.804,3173.4,3172.4,12.2682]
[1720908392716,1.5,3174.2,3172.4,9.8982]
[1720908392717,3.2867,3173.0,3172.4,9.8982]
[1720908392870,1.22962739,3172.9,3172.4,9.8982]
[1720908393087,1.22962739,3172.8,3172.4,9.8982]
[1720908393416,1.22962739,3172.7,3172.4,7.42]
[1720908393571,1.22962739,3172.6,3172.4,7.42]
[1720908393774,1.22962739,3172.5,3172.4,7.42]
[1720908393989,1.22962739,3172.5,3172.4,10.42]
[1720908394193,1.22962739,3172.5,3172.4,3.0]
[1720908394504,1.22962739,3172.5,3172.2,2.4782]
[1720908394705,1.22962739,3172.4,3172.3,0.54782]
[1720908395031,1.22962739,3172.4,3172.3,3.54782]
[1720908395230,1.09207744,3172.4,3172.3,3.54782]
[1720908395390,3.2867,3173.0,3172.3,3.54782]
[1720908395722,1.09212691,3172.9,3172.3,3.0]
[1720908396026,3.2867,3173.0,3172.2,2.4782]
[1720908396221,1.09212023,3172.8,3172.2,2.4782]
[1720908396431,1.09212023,3172.7,3171.9,7.42]
[1720908396647,1.89612023,3172.6,3171.9,7.42]
[1720908396852,1.09212023,3172.5,3171.9,7.42]
[1720908397712,1.09212023,3172.7,3171.9,7.42]
[1720908398409,1.09224728,3172.6,3172.1,2.2693]
[1720908398639,1.09224728,3172.5,3172.2,0.804]
[1720908398849,1.09217444,3172.4,3172.2,0.804]
[1720908399051,1.09217444,3172.3,3172.2,5.21734]
[1720908400434,1.09217444,3172.3,3172.2,2.20667]
[1720908402223,0.804,3173.1,3172.3,2.20659]
[1720908402428,1.09207722,3173.0,3172.3,2.20659]
[1720908402678,1.09207722,3172.9,3172.3,2.20659]
[1720908402932,1.09207722,3172.8,3172.4,0.441326]
[1720908403117,1.09207722,3172.7,3172.4,0.441326]
[1720908403315,1.09207722,3172.6,3172.3,2.20659]
[1720908403513,0.804,3173.1,3172.3,2.20659]
[1720908403514,1.09207722,3172.5,3172.3,2.20659]
[1720908403730,1.09207722,3172.4,3172.3,2.20659]
[1720908405525,0.804,3173.1,3172.3,2.20659]
[1720908405728,1.09208402,3173.0,3172.3,2.20659]
[1720908406030,0.804,3173.1,3172.3,2.955246]
[1720908406223,1.09207811,3173.0,3172.3,2.955246]
[1720908406424,1.09207811,3172.9,3172.3,2.955246]
[1720908406745,1.09207811,3172.8,3172.3,2.955246]
[1720908406943,1.09207811,3172.7,3172.3,2.955246]
[1720908407134,1.09207811,3172.6,3172.4,0.5161916]
[1720908407333,1.09207811,3172.5,3172.4,0.5161916]
[1720908408659,1.09205303,3172.5,3172.4,0.5161916]
[1720908409660,1.09205303,3172.5,3172.4,2.7227216]
[1720908412484,1.09207118,3172.5,3172.4,2.7227216]
[1720908415788,1.09206635,3172.5,3172.4,2.7227216]
[1720908416255,1.09207609,3172.5,3172.4,2.7227216]
[1720908417074,1.09207609,3172.5,3172.1,4.47603]
[1720908417271,0.804,3172.8,3172.1,4.47603]
[1720908417272,1.09207609,3172.4,3172.1,4.47603]
[1720908417468,1.09207609,3172.7,3172.1,4.47603]
[1720908417668,1.09207609,3172.6,3172.1,4.47603]
[1720908417900,1.09207609,3172.7,3172.1,4.47603]
[1720908418103,1.09207609,3172.6,3172.1,4.47603]
[1720908418304,1.09207609,3172.5,3172.1,2.20673]
[1720908418504,1.09207609,3172.7,3172.1,2.20673]
[1720908418913,1.0921242,3172.6,3172.1,2.20673]
[1720908419094,0.804,3172.8,3172.1,3.855646]
[1720908419304,1.09210871,3172.5,3172.1,3.855646]
[1720908419487,1.09210871,3172.4,3172.1,3.855646]
[1720908419689,1.09210871,3172.3,3172.1,3.855646]
[1720908419993,1.09210871,3172.7,3172.1,3.855646]
[1720908420173,1.09210871,3172.6,3172.1,3.855646]
[1720908420373,1.09210871,3172.5,3172.1,3.855646]
[1720908420592,1.09210871,3172.4,3172.2,0.6855646]
[1720908420799,1.09210871,3172.7,3172.2,0.6855646]
[1720908421012,1.09210871,3172.7,3172.0,3.0]
[1720908421607,0.804,3172.8,3172.0,3.0]
[1720908421812,1.09211422,3172.7,3172.1,2.20672]
[1720908425234,1.09212702,3172.6,3172.1,2.20672]
[1720908425440,1.09212702,3172.5,3172.1,2.20672]
[1720908425742,1.09213249,3172.4,3172.2,0.520672]
[1720908425944,1.09213249,3172.3,3172.2,2.908372]
[1720908428138,1.09214295,3172.3,3172.2,2.3877]
[1720908428350,1.09215197,3172.3,3172.2,2.3877]
[1720908431698,1.09216155,3172.3,3172.2,2.3877]
[1720908431832,1.09216138,3172.3,3172.2,2.3877]
[1720908435084,2.3631,3173.0,3172.2,2.3877]
[1720908435085,3.1671,3173.0,3172.2,2.3877]
[1720908435246,1.40885626,3172.9,3172.2,2.3877]
[1720908435444,2.3631,3172.7,3171.9,7.42]
[1720908435788,1.89623699,3172.6,3171.9,7.42]
[1720908436074,1.09223699,3172.5,3171.9,9.62684]
[1720908436238,1.09223699,3172.4,3171.9,9.62684]
[1720908436441,1.09223699,3172.3,3172.0,0.962684]
[1720908436669,1.09223699,3172.2,3172.0,0.962684]
[1720908436985,1.09223699,3172.1,3172.0,0.962684]
[1720908439288,1.09223699,3172.1,3171.9,3.01084]
[1720908439480,1.09223699,3172.0,3171.9,3.01084]
[1720908439681,1.09223699,3172.0,3171.9,6.01084]
[1720908441960,1.09217222,3172.0,3171.9,6.01084]
[1720908444094,1.09217222,3172.0,3171.9,3.804]
[1720908444266,1.09217222,3172.0,3171.9,2.20687]
[1720908444888,2.3764,3172.3,3171.8,3.0]
[1720908445057,1.09228963,3172.0,3171.6,5.20706]
[1720908445397,1.09232819,3171.9,3171.6,5.20706]
[1720908445597,1.09232819,3171.8,3171.6,5.20706]
[1720908445760,1.09232819,3171.7,3171.6,5.20706]
[1720908447608,1.09232819,3171.7,3171.6,5.20708]
[1720908448949,1.09233022,3171.7,3171.6,5.20708]
[1720908449308,1.09233012,3171.7,3171.6,5.20708]
[1720908449742,1.09112868,3171.7,3171.6,5.20708]
[1720908449947,2.3764,3172.3,3171.6,5.20708]
[1720908450773,2.3764,3172.3,3171.7,2.20699]
[1720908456029,2.3764,3172.3,3171.7,4.41394]
[1720908456674,2.3764,3172.3,3171.8,2.20693]
[1720908459880,1.09225182,3172.2,3171.8,2.20693]
[1720908460177,1.09225182,3172.1,3171.8,2.20693]
[1720908460381,1.09225182,3172.2,3171.8,2.20693]
[1720908462380,2.4645,3172.5,3171.8,2.20693]
[1720908462680,1.09223432,3172.4,3171.8,2.20693]
[1720908462891,2.79135,3172.5,3171.8,2.20693]
[1720908463177,1.09223405,3172.4,3171.8,2.20693]
[1720908463351,1.09223405,3172.3,3171.8,2.20693]
[1720908463553,1.09223405,3172.2,3171.8,2.20693]
[1720908463781,1.09223405,3172.1,3171.8,2.20693]
[1720908464095,1.09223405,3172.0,3171.8,2.20693]
[1720908464284,1.09223405,3172.4,3171.8,2.948318]
[1720908464441,1.09223405,3172.4,3171.8,2.20693]
[1720908465570,1.09227885,3172.3,3172.0,2.3453]
[1720908465759,2.4645,3172.9,3172.2,2.20667]
[1720908465961,1.09222422,3172.8,3172.2,2.20667]
[1720908466265,1.09222422,3172.7,3172.2,2.20667]
[1720908466470,1.09222422,3172.6,3172.2,2.20667]
[1720908466698,1.09222422,3172.5,3172.2,2.20667]
[1720908466891,1.09222422,3172.4,3172.2,2.20667]
[1720908467102,1.09222422,3172.3,3172.2,2.20667]
[1720908469094,2.4645,3172.9,3172.2,2.20667]
[1720908469404,1.09222199,3172.8,3172.2,2.20667]
[1720908469793,1.09222199,3172.7,3172.2,2.20667]
[1720908470085,1.09222199,3172.6,3172.2,2.20667]
[1720908470395,1.09222199,3172.5,3172.2,2.20667]
[1720908470561,1.09222199,3172.4,3172.2,2.20667]
[1720908470761,1.09222199,3172.3,3172.2,2.20667]
[1720908471000,1.09222199,3172.3,3172.2,2.88254]
[1720908472570,0.804,3172.8,3172.2,2.88254]
[1720908472911,5.20141095,3172.9,3171.7,7.42]
[1720908472912,1.0922209,3172.7,3172.4,2.3453]
[1720908473126,1.0922209,3172.6,3172.4,4.55182]
[1720908473409,1.0922209,3172.5,3172.4,4.55182]
[1720908473616,1.0922209,3172.5,3172.4,5.007002]
[1720908474281,1.0922209,3172.5,3172.4,4.55182]
[1720908475372,1.09220017,3172.5,3172.4,4.55182]
[1720908475903,0.804,3172.9,3172.4,4.55182]
[1720908476080,1.09220052,3172.8,3172.4,4.55182]
[1720908476287,1.09220052,3172.7,3172.4,4.55182]
[1720908476594,1.09220052,3172.6,3172.4,4.55182]
[1720908476802,1.09220052,3172.5,3172.4,4.55182]
[1720908477300,1.09220052,3172.5,3172.1,2.20672]
[1720908477611,1.09220052,3172.4,3172.1,2.20672]
[1720908477767,1.09220052,3172.6,3172.1,2.20672]
[1720908477967,1.09220052,3172.5,3172.1,2.20672]
[1720908478204,1.09220052,3172.4,3172.1,2.20672]
[1720908478511,1.09220052,3172.6,3172.1,2.20672]
[1720908478688,1.09220052,3172.5,3172.1,2.20672]
[1720908478898,1.09220052,3172.4,3172.1,2.20672]
[1720908479069,1.09220052,3172.3,3172.1,2.20672]
[1720908479276,1.09220052,3172.6,3172.1,2.20672]
[1720908479472,2.18444085,3172.5,3172.1,2.20672]
[1720908479803,1.0922205,3172.4,3172.0,2.20679]
[1720908479982,1.0922205,3172.3,3172.0,2.20679]
[1720908480182,1.0922205,3172.4,3172.0,2.20679]
[1720908480383,1.0922205,3172.3,3172.0,2.20679]
[1720908480594,1.0922205,3172.2,3172.0,2.20679]
[1720908480905,1.0922205,3172.1,3172.0,2.20679]
[1720908481078,1.0922205,3172.4,3172.0,2.20679]
[1720908481283,1.0922205,3172.3,3172.0,2.20679]
[1720908481579,1.0922205,3172.2,3172.1,0.466269]
[1720908482000,1.09222035,3172.5,3172.1,0.466269]
[1720908482196,1.09221857,3172.4,3172.1,0.466269]
[1720908482374,1.09221857,3172.3,3172.1,0.466269]
[1720908482573,1.09222035,3172.5,3172.1,0.466269]
[1720908482574,1.09221896,3172.2,3172.1,0.466269]
[1720908483706,1.09221818,3172.2,3172.1,5.128909]
[1720908485398,1.09222035,3172.5,3172.1,5.128909]
[1720908485399,1.09222035,3172.5,3172.2,2.20666]
[1720908485588,1.09220875,3172.4,3172.2,2.20666]
[1720908485774,1.09220875,3172.3,3172.2,2.9402219]
[1720908486206,1.09220875,3172.4,3172.2,2.9402219]
[1720908487311,1.09220875,3172.4,3172.2,2.15666]
[1720908489030,1.09222035,3172.5,3172.2,2.15666]
[1720908489031,1.09221594,3172.3,3172.2,2.15666]
[1720908492243,0.804,3172.9,3172.2,2.15666]
[1720908492528,1.09221004,3172.8,3172.2,2.15666]
[1720908492690,3.54303783,3172.9,3172.2,2.15666]
[1720908492897,1.44651313,3172.8,3172.2,2.15666]
[1720908493105,1.09220935,3172.7,3172.2,2.15666]
[1720908493312,1.09220935,3172.6,3172.2,2.15666]
[1720908493511,1.09220935,3172.5,3172.2,2.15666]
[1720908493712,1.09220935,3172.4,3172.2,2.15666]
[1720908493935,1.09220935,3172.3,3172.2,2.15666]
[1720908495410,1.09220702,3172.3,3172.2,4.36328]
[1720908495611,1.09220716,3172.3,3172.2,4.36328]
[1720908497133,1.09220716,3172.3,3172.2,2.15666]
[1720908499004,5.03568083,3172.8,3172.2,2.15666]
[1720908499245,1.44657034,3172.7,3172.2,2.15666]
[1720908499506,1.092207,3172.6,3172.2,2.15666]
[1720908499707,1.092207,3172.5,3172.2,2.15666]
[1720908499909,1.092207,3172.4,3172.2,2.15666]
[1720908500202,1.092207,3172.3,3172.2,2.15666]
[1720908500432,1.092207,3172.6,3172.2,2.15666]
[1720908500653,1.092207,3172.5,3172.2,2.15666]
[1720908500941,1.092207,3172.4,3172.2,2.15666]
[1720908501141,1.092207,3172.3,3172.2,2.15666]
[1720908501353,1.092207,3172.7,3172.2,2.15666]
[1720908501551,1.70499578,3172.6,3172.2,2.15666]
[1720908501722,1.092207,3172.5,3172.2,2.15666]
[1720908501906,1.092207,3172.4,3172.2,2.15666]
[1720908502109,1.092207,3172.3,3172.2,2.15666]
[1720908502309,1.092207,3172.7,3172.2,2.15666]
[1720908502530,1.70499661,3172.6,3172.2,2.15666]
[1720908502806,0.61278878,3172.6,3172.2,2.15666]
[1720908503012,1.092208,3172.5,3172.2,2.15666]
[1720908503218,1.092208,3172.4,3172.2,2.15666]
[1720908503443,1.092208,3172.3,3172.2,2.15666]
[1720908503648,1.092208,3172.7,3172.2,2.15666]
[1720908503957,1.092208,3172.6,3172.2,2.15666]
[1720908504159,1.092208,3172.5,3172.2,2.15666]
[1720908504453,1.092208,3172.4,3172.2,2.15666]
[1720908504627,1.092208,3172.3,3172.2,2.15666]
[1720908505130,0.58398684,3172.7,3172.2,2.15666]
[1720908505430,1.09221241,3172.6,3172.2,2.15666]
[1720908505631,1.09221241,3172.5,3172.2,2.15666]
[1720908505833,0.58398684,3172.7,3172.2,2.15666]
[1720908505834,1.09221344,3172.4,3172.2,2.15666]
[1720908506039,1.09221355,3172.3,3172.2,2.15666]
[1720908508421,1.09221355,3172.3,3172.1,2.4559]
[1720908508628,1.09221355,3172.2,3172.1,2.4559]
[1720908508840,1.09221355,3172.6,3172.1,4.66259]
[1720908509043,1.09221355,3172.5,3172.1,4.66259]
[1720908509240,1.09221355,3172.4,3172.1,4.66259]
[1720908509430,1.09221962,3172.3,3172.1,4.66259]
[1720908509613,1.09221962,3172.2,3172.1,4.66259]
[1720908509817,1.09221962,3172.5,3172.1,4.66259]
[1720908510042,1.09221962,3172.4,3172.1,4.66259]
[1720908510224,1.09221962,3172.3,3172.1,4.66259]
[1720908510429,1.09221962,3172.2,3172.1,4.66259]
[1720908510854,1.09221962,3172.6,3172.2,2.20666]
[1720908511020,1.09221962,3172.5,3172.2,2.20666]
[1720908511361,1.09221962,3172.4,3172.2,2.20666]
[1720908511534,1.09221962,3172.3,3172.2,2.20666]
[1720908512722,3.0997,3172.8,3172.2,2.20666]
[1720908512923,1.09221491,3172.3,3172.2,2.20666]
[1720908513233,2.74109588,3172.7,3172.2,2.20666]
[1720908513426,1.09221515,3172.3,3172.2,2.20666]
[1720908515150,1.09221515,3172.3,3172.1,2.4559]
[1720908515458,1.09221515,3172.2,3172.1,2.4559]
[1720908515664,1.09221515,3172.2,3172.1,4.66264]
[1720908515864,1.09221626,3172.2,3172.1,4.66264]
[1720908516153,2.4446,3172.4,3172.0,2.20674]
[1720908516323,1.09221701,3172.2,3172.0,2.20674]
[1720908516524,1.09221701,3172.1,3172.0,2.20674]
[1720908516787,1.09221701,3172.3,3172.0,2.20674]
[1720908517075,1.09221701,3172.2,3172.0,2.20674]
[1720908517356,1.09221701,3172.3,3172.0,2.20674]
[1720908517559,1.09221701,3172.2,3172.0,2.20674]
[1720908517760,1.09221701,3172.3,3172.0,2.20674]
[1720908517923,1.09221701,3172.2,3172.0,2.20674]
[1720908518140,1.09221701,3172.3,3172.0,2.20674]
[1720908518380,1.09221701,3172.2,3172.0,2.20674]
[1720908518681,1.09221701,3172.1,3172.0,2.20674]
[1720908518862,1.09221701,3172.3,3172.0,2.20674]
[1720908519047,1.09221701,3172.2,3172.0,2.20674]
[1720908519371,1.09221701,3172.1,3171.8,4.5013]
[1720908519571,2.4446,3172.4,3171.8,4.5013]
[1720908519771,1.09224192,3172.0,3171.8,4.5013]
[1720908519959,1.09224192,3171.9,3171.8,4.5013]
[1720908520165,1.09224192,3172.3,3171.8,7.5013]
[1720908520355,1.09224192,3172.2,3171.8,4.5013]
[1720908520562,1.09224192,3172.1,3171.8,4.5013]
[1720908520742,1.09224192,3172.0,3171.8,4.5013]
[1720908520943,1.09224192,3172.3,3171.8,4.5013]
[1720908521171,1.09224192,3172.2,3171.8,4.5013]
[1720908521385,2.4446,3172.4,3171.8,4.5013]
[1720908521386,1.09224192,3172.1,3171.8,4.5013]
[1720908521686,1.09224192,3172.0,3171.8,4.5013]
[1720908521885,1.09224192,3171.9,3171.8,4.5013]
[1720908522069,1.09224192,3171.9,3171.8,7.5013]
[1720908523055,2.4446,3172.4,3171.8,7.5013]
[1720908523364,1.09222383,3172.3,3171.8,7.5013]
[1720908523572,2.4446,3172.4,3171.8,7.5013]
[1720908523754,1.09222965,3172.3,3171.8,7.5013]
[1720908523959,1.09222965,3172.2,3171.8,7.5013]
[1720908524175,1.09222965,3172.3,3171.8,7.5013]
[1720908524477,1.09222965,3172.2,3171.8,7.5013]
[1720908524642,1.09222965,3172.3,3171.8,7.5013]
[1720908524846,1.09222965,3172.2,3171.8,7.5013]
[1720908525048,1.09222965,3172.3,3171.8,7.5013]
[1720908525248,1.09222965,3172.2,3171.8,7.5013]
[1720908525474,1.09222965,3172.3,3171.8,7.5013]
[1720908525661,1.09222965,3172.2,3171.8,7.5013]
[1720908525979,1.09222965,3172.1,3171.8,7.5013]
[1720908526191,2.4446,3172.4,3171.8,7.5013]
[1720908526192,1.09223288,3172.0,3171.8,7.5013]
[1720908526485,1.09223288,3171.9,3171.8,7.5013]
[1720908526806,1.09223316,3172.3,3171.8,7.5013]
[1720908526982,1.09223316,3171.9,3171.8,7.5013]
[1720908530093,1.09222338,3171.9,3171.8,7.5013]
[1720908533363,2.4446,3172.4,3171.8,7.5013]
[1720908533570,1.33668332,3172.3,3171.8,7.5013]